Cogmind - Beta 13 @@@ ROGUE MODE // 2024.06.06 @ 15:56:48 Player: Kat Result: Destroyed by XZ-IUQ(R) with Subdweller Laser Performance ------------- Evolutions (0) 0 Regions Visited (3) 600 Robots Destroyed (56) 280 Value Destroyed (1156) 1156 Prototype IDs (0) 0 Alien Tech Used (0) 0 Bonus (0) 0 TOTAL SCORE: 2036 Bonus ------- None Cogmind --------- Core Integrity 0/250 Matter 192/300 Energy 265/265 System Corruption 0% Temperature Cool (6) Movement Treading (240) Ox1 Location -10/Subcaves Parts ------- > --- POWER (1) -------- Improved Ion Engine > --- PROPULSION (2) --- Light Treads > --- UTILITY (2) ------ Large Storage Unit > --- WEAPON (2) ------- Flail > --- INVENTORY (15) --- Ion Engine Light Treads Heat Sink Heat Sink Improved Heat Sink Huge Storage Unit Sensor Array Improved Targeting Computer Improved Targeting Computer Hacking Suite Beam Rifle Beam Rifle Battle Rifle Flail Mining Claw Peak State ------------ > --- POWER ------------ Improved Ion Engine > --- PROPULSION ------- Light Treads Light Treads > --- UTILITY ---------- Improved Heat Sink Large Storage Unit > --- WEAPON ----------- Beam Rifle Beam Rifle > --- INVENTORY -------- Ion Engine Light Ion Engine Light Treads Heat Sink Heat Sink Huge Storage Unit Sensor Array Improved Targeting Computer Improved Targeting Computer Light Armor Plating Hacking Suite Grenade Launcher Flail Flail Mining Claw [Rating: 14] Favorites ----------- Power Ion Engine Engine Ion Engine Propulsion Light Treads Treads Light Treads Leg Aluminum Leg Wheel Wheel Utility Large Storage Unit Device Heat Sink Storage Large Storage Unit Protection Light Armor Plating Weapon Beam Cannon Energy Gun Beam Rifle Energy Cannon Beam Cannon Launcher Grenade Launcher Impact Weapon Flail Build | -11 -10 -10 -10 ------- Run | Yrd Mat Min Sub Slots Evolved . | . . . . Power . | . . . . Propulsion . | . . . . Utility . | . . . . Weapon . | . . . . Parts Attached 31 | 8 10 9 4 Power 3 | 1 1 1 . Engine 3 | 1 1 1 . Core . | . . . . Reactor . | . . . . Propulsion 10 | 3 4 2 1 Treads 5 | . 2 2 1 Leg 4 | 2 2 . . Wheel 1 | 1 . . . Hover . | . . . . Flight . | . . . . Utility 7 | 2 2 2 1 Device 4 | 1 1 2 . Storage 2 | 1 1 . . Processor . | . . . . Hackware . | . . . . Protection 1 | . . . 1 Artifact . | . . . . Weapon 11 | 2 3 4 2 Energy Gun 4 | 2 . 2 . Energy Cannon 4 | . 3 1 . Ballistic Gun . | . . . . Ballistic Cannon . | . . . . Launcher 2 | . . 1 1 Special Weapon . | . . . . Impact Weapon 1 | . . . 1 Slashing Weapon . | . . . . Piercing Weapon . | . . . . Special Melee Weapon . | . . . . Unidentified Prototypes . | . . . . Parts Lost 5 | . . 2 3 Power . | . . . . Propulsion 2 | . . 1 1 Utility 1 | . . . 1 Weapon 2 | . . 1 1 Highest Loss Streak 3 | . . 2 3 To Critical Strikes . | . . . . Average Slot Usage (%) 99 | . 100 98 99 Engine 14 | . 14 14 14 Treads 21 | . 15 26 28 Leg 6 | . 12 . . Device 12 | . 14 14 1 Storage 14 | . 14 14 14 Protection 1 | . . . 12 Energy Gun 4 | . . 12 3 Energy Cannon 18 | . 27 13 . Launcher 2 | . . 2 12 Impact Weapon 1 | . . . 12 Naked Turns . | . . . . Heaviest Build 35 | 13 32 34 35 Greatest Support 40 | 20 40 40 40 Greatest Overweight (x) 1 | 1 . 1 1 Average Overweight (x) . | . . . . Largest Inventory Capacity 15 | 8 15 15 15 Average Capacity 12 | 7 12 15 15 Most Carried 15 | 7 12 15 15 Average Carried 10 | 4 8 13 14 Final Capacity 15 | 8 15 15 15 Final Carried 15 | 6 12 15 15 Class Distribution -------------------- 84% | Mutant 15% | Scavenger-Mutant Dominant Class ---------------- Mutant | -10/Materials Mutant | -10/Mines Mutant | -10/Subcaves Resources | -11 -10 -10 -10 ----------- Run | Yrd Mat Min Sub Matter Collected 584 | 280 97 90 117 Remotely . | . . . . Salvage Created 1814 | 316 973 429 96 Parts 110 | 24 49 23 14 Haulers Intercepted 2 | . 2 . . Recyclers Shooed 2 | . 2 . . Parts Field Recycled . | . . . . Retrieved Matter . | . . . . Parts Self-Destructed 7 | . . . 7 Prevented . | . . . . Kills | -11 -10 -10 -10 ------- Run | Yrd Mat Min Sub Combat Hostiles Destroyed 33 | . 16 9 8 Guns 2 | . . 2 . Cannons 22 | . 15 7 . AOE 8 | . . . 8 Classes Destroyed 10 | 3 5 . 2 Worker 2 | 2 . . . Tunneler 8 | 8 . . . Hauler 2 | . 2 . . Recycler 5 | 1 3 1 . Operator 2 | . 2 . . Turret 1 | . . . 1 Watcher 3 | . 3 . . Swarmer 11 | . 4 3 4 Grunt 18 | . 12 6 . Subdweller 4 | . . . 4 Best Kill Streak 5 | 5 4 5 5 Combat Bots Only 5 | . 3 5 4 Max Kills in Single Turn 4 | 1 1 1 4 Gunslinging . | . . . . Exploded 4 | . . . 4 Melee . | . . . . Uniques/NPCs Destroyed . | . . . . Combat | -11 -10 -10 -10 -------- Run | Yrd Mat Min Sub Hostile Shots Fired 194 | . 29 81 84 Missed 73 | . 11 26 36 Damage Taken 1465 | . 222 594 649 Core 265 | . 38 53 174 Absorbed by Shields . | . . . . Core Remaining (%) 100 | 100 . . . Volleys Fired 119 | 20 50 29 20 Largest 2 | 2 2 2 1 Hottest 120 | 80 120 120 30 Shots Fired 214 | 40 100 54 20 Gun 52 | 40 . 12 . Cannon 142 | . 100 42 . Launcher 20 | . . . 20 Special . | . . . . Kinetic . | . . . . Thermal 154 | . 100 54 . Explosive 20 | . . . 20 Electromagnetic 40 | 40 . . . Robot Hit Streak 9 | 5 6 9 8 Robot Miss Streak 3 | 2 3 3 2 Penetration Max . | . . . . Secondary Targets 1 | . . 1 . Max Gunslinging Chain 1 | . . 1 . Shots Hit Robots 129 | 24 55 39 11 Core Hits 66 | 11 25 13 17 Critical Kills 1 | . 1 . . Critical Parts Destroyed . | . . . . Critical Strikes 4 | 1 1 2 . Burn 2 | . . 2 . Meltdown 1 | . 1 . . Corrupt 1 | 1 . . . Melee Attacks 1 | . . . 1 Impact 1 | . . . 1 Slashing . | . . . . Piercing . | . . . . Sneak Attacks . | . . . . Combat Hostiles . | . . . . Follow-up Attacks . | . . . . Damage Inflicted 3007 | 364 972 726 945 Guns 525 | 364 . 161 . Cannons 1527 | . 966 561 . Explosions 945 | . . . 945 Melee . | . . . . Ramming 10 | . 6 4 . Kinetic . | . . . . Thermal 1688 | . 966 722 . Explosive 945 | . . . 945 Electromagnetic 364 | 364 . . . Impact . | . . . . Slashing . | . . . . Piercing . | . . . . Highest Corruption . | . . . . Average Corruption . | . . . . Corruption Purged . | . . . . Corruption Blocked . | . . . . Overload Shots . | . . . . Overflow Damage 28 | . 14 14 . Projectiles 28 | . 14 14 . Explosions . | . . . . Melee . | . . . . Knockbacks . | . . . . Impact . | . . . . Kinetic . | . . . . Secondary . | . . . . Self-Inflicted Damage 45 | . . . 45 Shots 2 | . . . 2 Rammed 3 | . 2 1 . Targets Rammed 3 | . 2 1 . Kicked . | . . . . Crushed . | . . . . Highest Temperature 429 | 90 144 429 . Average Temperature 77 | 29 40 173 . Received Heat Transfer 564 | . 69 249 246 Effects 1 | . . 1 . Shutdowns 1 | . . 1 . Siege Activations . | . . . . Robots Corrupted 1 | 1 . . . Combat Hostiles . | . . . . Parts Fried 3 | 3 . . . Impact Corruptions . | . . . . Robots Melted 1 | . 1 . . Combat Hostiles 1 | . 1 . . Parts Melted 7 | . 4 3 . Heat Transferred 3774 | . 2035 1739 . Parts Sabotaged . | . . . . Parts Stolen . | . . . . Parts Stripped . | . . . . Power Chain Reactions . | . . . . Alert | -11 -10 -10 -10 ------- Run | Yrd Mat Min Sub Peak Influence 395 | 55 395 243 . Initial 88 | . 35 88 . Average 173 | 19 247 112 . Maximum Alert Level 1 | . 1 1 . Low Security (%) 57 | 100 29 86 . Level 1 42 | . 70 13 . Level 2 . | . . . . Level 3 . | . . . . Level 4 . | . . . . Level 5 . | . . . . High Security . | . . . . Max Security . | . . . . Squads Dispatched 6 | . 6 . . Investigation 4 | . 4 . . Extermination . | . . . . Reinforcement 2 | . 2 . . Assault . | . . . . Garrison . | . . . . Intercept . | . . . . Searches Triggered . | . . . . Construction Impeded . | . . . . Haulers Reinforced . | . . . . Active Scanning Responses . | . . . . Cargo Convoy Interrupts . | . . . . Stealth | -11 -10 -10 -10 --------- Run | Yrd Mat Min Sub Distress Signals . | . . . . Communications Jammed . | . . . . Distress Signals . | . . . . Times Spotted 75 | . 25 10 40 Peak Tracking Total 7 | . 3 5 7 Tactical Retreats 5 | . 3 . 2 Traps | -11 -10 -10 -10 ------- Run | Yrd Mat Min Sub Traps Triggered 3 | . 3 . . Indirectly . | . . . . Trap Hack Attempts . | . . . . Triggered . | . . . . Disarmed . | . . . . Reprogrammed . | . . . . Reused . | . . . . Traps Extracted . | . . . . Installed . | . . . . Triggered . | . . . . Machines | -11 -10 -10 -10 ---------- Run | Yrd Mat Min Sub Machines Disabled 5 | . 2 . 3 Max in Single Turn 2 | . 1 . 2 Machines Repaired . | . . . . Machines Dismantled . | . . . . Machines Sabotaged . | . . . . Overloaded Fab Kills . | . . . . Hacking | -11 -10 -10 -10 --------- Run | Yrd Mat Min Sub Machines Accessed 6 | . 6 . . Terminals 6 | . 6 . . Fabricators . | . . . . Repair Stations . | . . . . Recycling Units . | . . . . Scanalyzers . | . . . . Garrison Access . | . . . . Total Hacks 22 | . 22 . . Successful 8 | . 8 . . Failed 14 | . 14 . . Catastrophic 2 | . 2 . . Database Lockouts . | . . . . Manual 20 | . 20 . . Terminals 22 | . 22 . . Fabricators . | . . . . Repair Stations . | . . . . Recycling Units . | . . . . Scanalyzers . | . . . . Garrison Access . | . . . . Terminal Hacks 2 | . 2 . . Terminal Index 2 | . 2 . . Fabricator Hacks . | . . . . Repair Station Hacks . | . . . . Recycling Unit Hacks . | . . . . Scanalyzer . | . . . . Garrison Access Hacks . | . . . . Unauthorized Hacks 6 | . 6 . . Terminals 6 | . 6 . . Botnet 5 | . 5 . . Operators 1 | . 1 . . Fabricators . | . . . . Repair Stations . | . . . . Recycling Units . | . . . . Scanalyzers . | . . . . Garrison Access . | . . . . Data Cores Recovered . | . . . . Used . | . . . . Hacking Detections 5 | . 5 . . Full Trace Events 4 | . 4 . . Feedback Events . | . . . . Feedback Blocked . | . . . . Robot Schematics Acquired . | . . . . Robots Built . | . . . . Authchips . | . . . . Time . | . . . . Total Robot Build Rating . | . . . . Part Schematics Acquired . | . . . . Parts Built . | . . . . Authchips . | . . . . Time . | . . . . Total Part Build Rating . | . . . . Parts Repaired . | . . . . Time . | . . . . Parts Recycled . | . . . . Recycled Matter . | . . . . Retrieved Matter . | . . . . Retrieved Components . | . . . . Parts Scanalyzed . | . . . . Part Schematics Acquired . | . . . . Parts Damaged . | . . . . Bothacking | -11 -10 -10 -10 ------------ Run | Yrd Mat Min Sub Used RIF Installer . | . . . . Robots Hacked . | . . . . Non-combat . | . . . . Combat . | . . . . Robot Hacks Applied . | . . . . Relay Couplers Released . | . . . . Fabnet Peak Effective % . | . . . . Robots Rewired . | . . . . Allies Hacked . | . . . . Hacks Repelled . | . . . . Allies | -11 -10 -10 -10 -------- Run | Yrd Mat Min Sub Total Allies . | . . . . Largest Group . | . . . . Highest-Rated Group . | . . . . Highest-Rated Ally . | . . . . Total Orders . | . . . . Ally Attacks . | . . . . Total Damage . | . . . . Kills . | . . . . Allies Corrupted . | . . . . Allies Melted . | . . . . Intel | -11 -10 -10 -10 ------- Run | Yrd Mat Min Sub Robot Analysis Total . | . . . . Derelict Logs Recovered 2 | . . 1 1 Drone Launches . | . . . . Drone Recoveries . | . . . . Exploration | -11 -10 -10 -10 ------------- Run | Yrd Mat Min Sub Turns Passed 2665 | 252 1212 843 358 Spaces Moved 1443 | 150 648 453 192 Core 12 | 12 . . . Treads 1007 | . 362 453 192 Legs 424 | 138 286 . . Wheels . | . . . . Hover . | . . . . Flight . | . . . . Fastest Speed 50 | 50 120 160 160 Average Speed 148 | 114 142 162 160 Slowest Speed 240 | 120 160 240 240 Overloaded Moves . | . . . . Propulsion Burnouts . | . . . . Robots Hopped . | . . . . Cave-ins Triggered . | . . . . Exploration Rate (%) 51 | 5 92 91 19 Regions Visited 3 Branch Regions 2 Pre-discovered Areas 1 | . . 1 . Known Exits Taken . | . . . . Unknown Exits Taken 3 | 1 1 1 . Scrap Searched 5 | . . 3 2 Spaces Dug . | . . . . Terrain Destroyed 50 | . . . 50 Melee . | . . . . Projectile . | . . . . AOE 50 | . . . 50 Terrain Rammed . | . . . . Walls Destroyed . | . . . . Machines Disabled . | . . . . Actions | -11 -10 -10 -10 --------- Run | Yrd Mat Min Sub Total 1754 | 187 843 504 220 Wait 102 | . 98 3 1 Move 1440 | 149 647 452 192 Hop . | . . . . Pick Up 31 | 7 18 5 1 Fast Attach 11 | 8 2 1 . Attach 2 | . . 2 . Detach 1 | 1 . . . Swap 18 | . 8 6 4 Drop 26 | 2 18 5 1 Fire 119 | 20 50 29 20 Melee 1 | . . . 1 Ram . | . . . . Kick . | . . . . Crush 3 | . 2 1 . Escape Stasis . | . . . . Rewire . | . . . . Trap . | . . . . Miscellaneous . | . . . . Route ------- -11/Scrapyard -10/Materials (discovered 4 exits: [*Mat x3] / [*Min]) -10/Mines -10/Subcaves (discovered 2 exits: [*Mat] / [*Rec]) History --------- Turn | Location | Event 7 | -11/Scrapyard | Discovered new exit (range 16) 253 | -11/Scrapyard | Entered Materials 310 | -10/Materials | Build established: Mutant 525 | -10/Materials | Discovered new exit (range 4) 1021 | -10/Materials | Discovered new exit (range 5) 1034 | -10/Materials | Discovered new exit (range 16) 1178 | -10/Materials | Discovered new exit (range 11) 1465 | -10/Materials | Entered Mines 1923 | -10/Mines | Joined a pair of Derelicts in attacking an 0b10 outpost 2199 | -10/Mines | Learned location of Mines (-8) 2231 | -10/Mines | Build established: Scavenger-Mutant 2279 | -10/Mines | Discovered new exit (range 7) 2308 | -10/Mines | Entered Subcaves 2423 | -10/Subcaves | Core integrity fell below 50% 2552 | -10/Subcaves | A swath of the cavern ceiling suddenly collapsed 2552 | -10/Subcaves | Shifting Twisted Machinery released Sub. Beam Cannon 2557 | -10/Subcaves | Learned Materials interactive machine intel 2564 | -10/Subcaves | Shifting Twisted Machinery released Battle Rifle 2625 | -10/Subcaves | Shifting Twisted Machinery released Humpback 2625 | -10/Subcaves | Discovered new exit (range 15) 2643 | -10/Subcaves | Discovered new exit (range 13) 2646 | -10/Subcaves | Core integrity fell below 20% 2665 | -10/Subcaves | Build established: Mutant 2666 | -10/Subcaves | Destroyed by XZ-IUQ(R) with Subdweller Laser Last Messages --------------- Battle Rifle falls loose from the Twisted Machinery. 02621_ XZ-IUQ(R): "LEAVESUB!" Humpback falls loose from the Twisted Machinery. 02625_ N6-R0S(z): "She is not going to be happy we haven't found any suitable candidates yet." 02625_ EXIT=FOUND 02644_ Dropped Lgt. Ion Engine. 02645_ Acquired Battle Rifle. 02646_ S-10 Pest destroyed. 02648_ The unstable cave ceiling collapses. 02648_ Machine disabled. 02651_ Lgt. Ion Engine fries itself beyond repair. 02653_ Lgt. Armor Plating destroyed. 02654_ Flight Unit fries itself beyond repair. 02654_ Acquired 48 matter. 02657_ Lgt. Assault Rifle fries itself beyond repair. 02659_ Autobeam Turret destroyed. 02662_ Grenade Launcher destroyed. 02663_ Flight Unit fries itself beyond repair. 02664_ Lgt. Treads destroyed. Map ----- +----------------------------------------------------+ | ?????????????????????????????????????????????????? | | ?????????????????????????????????????????????????? | | ?????????????????????????????????????????????????? | | ?????????????????????????????????????????????????? | | ?????????????????????????????????????????????????? | | ?????????????????????????????????????????????????? | | ?????????????????????????????????????????????????? | | ?????????????????????????????????????????????????? | | ?????????????????????????????????????????????????? | | ?????????????????????????????????????????????????? | | ?????????????????????????????????????????????????? | | ?????????????????????????????????????????????????? | | ?????????????????????????????????????????????????? | | ??????????????????????##??####???????????????????? | | ??????????????????????# ## < ####????????????????? | | ???????????????# ?????# ""#????????????????? | | ???????????????? ????# "#????????????????? | | ????????????????# ????# t "#?? ????????????? | | ????????????????# ???# #?? ???????????? | | ????????????????# ??? #?? < ???????????? | | ????????????????# ?? "?## ???????????? | | ???????????????## #?# ??# #???????????? | | ???????????????# ## % #???# #####???????? | | ?????????? ##R ##???# # #???????? | | #????????? & #??? ????????? | | ##???????????? < < @ #???# #????????? | | #???????? R # ##?## #????????? | | #???????????" ?????# #?# ##????? | | ##????????? ????## #?? #???? | | #?????????# "#?????## ##?# ##?? | | ##????????? #??????## ## R### ### | | #??###????# #???????# ## #? | | #?## ##??? ???????# #### #?? | | ##?# ##?## ##??????##???###### #???? | | ##### #?# #????????????????## ##???? | | # ## #?? #????????????????## #????? | | #### #????????????????# ##???? | | ## #?????????????????# #? | | ### #???????####??????###" ## ##? | | ## ## ###?????# #????????## #" #?? | | # #### " ##???## ##???????# #?" #? | | # ##??# #"#" ##### ######### #?? | | # #???# """##### #"#"" # #??? " ## | | ##???#### ""#" ""[" ##????" #??" | | ????????#### # "# "] #?????"#??? | | ???????????# ##"# ## " # # #######????????? | | ????????? ##"#"# ##"" ### # # ##???????? | | ?????? #""##"#"""" ""#???????? | | #???? #"""" ""## ## # #""" #??????? | | #???# ? #### #"##"""##############" "#?????? | +----------------------------------------------------+ Best States ------------- Heat Dissipation 39 Energy Generation 12 Energy Capacity 265 Matter Stores 300 Matter Capacity 300 Sight Range 16 Terrain Scan Density 10 Armor Coverage 150 Evasion (%) 55 Recoil Reduction 2 Item Schematics ----------------- None Robot Schematics ------------------ None Fabricated ------------ Nothing Alien Tech Used ----------------- None Achievements -------------- None Challenges ------------ None Game ------ Seed LightResetRailgun Manual? 0 Play Time 00:22:21 Cumulative 28.9 hours Start 2024.06.06 @ 15:32:01 End 2024.06.06 @ 15:56:48 Sessions 1 Manual Loads 0 Difficulty Rogue Special Mode None Game No. 62 Rogue 62 Adventurer 0 Explorer 0 Win Type - Total 0 Types 0/0/0/0/0/0/0/0/0 Lore% 21 Gallery% 27 Achievement% 22 Wizard Run 0 Options --------- Layout 0 ASCII 0 Keyboard 0 Movement Mouse Keybinds 0 Fullscreen 2 Font 18/Terminus Map View 76x50 Zoom Use 0% Tactical HUD 1 Map Filters NONE Filters NONE Steam 1 RUN: c3f91395-912b-4bfd-8d11-b4f3efac8c5d